fUSD/lending_fUSD_20240107
["ID","MTS","AMOUNT","RATE_DAILY","PERIOD"]
[310620856,1704586239823,-326.68,0.00022799,2]
[310620857,1704586239833,-500.0,0.00022799,2]
[310620858,1704586239843,-500.0,0.00022799,2]
[310620859,1704586239853,-500.0,0.00022799,2]
[310620860,1704586239862,-500.0,0.00022799,2]
[310620861,1704586239872,-500.0,0.00022799,2]
[310620862,1704586239882,-500.0,0.00022799,2]
[310620863,1704586239892,-500.0,0.00022799,2]
[310620864,1704586239903,-500.0,0.00022799,2]
[310620865,1704586239914,-644.562813,0.00022799,2]
[310620866,1704586239924,-500.0,0.00022799,2]
[310620867,1704586239934,-500.0,0.00022799,2]
[310620868,1704586239944,-500.0,0.00022799,2]
[310620869,1704586239954,-500.0,0.00022799,2]
[310620870,1704586239963,-500.0,0.00022799,2]
[310620871,1704586239973,-500.0,0.00022799,2]
[310620872,1704586239983,-500.0,0.00022799,2]
[310620873,1704586239993,-500.0,0.00022799,2]
[310620874,1704586240002,-500.0,0.00022799,2]
[310620875,1704586240012,-500.0,0.00022799,2]
[310620876,1704586240022,-500.0,0.00022799,2]
[310620877,1704586240032,-500.0,0.00022799,2]
[310620878,1704586240042,-500.0,0.00022799,2]
[310620879,1704586240053,-500.0,0.00022799,2]
[310620880,1704586240062,-500.0,0.00022799,2]
[310620881,1704586240072,-500.0,0.00022799,2]
[310620882,1704586240082,-500.0,0.00022799,2]
[310620883,1704586240095,-500.0,0.00022799,2]
[310620884,1704586240104,-500.0,0.00022799,2]
[310620885,1704586240114,-500.0,0.00022799,2]
[310620886,1704586240126,-500.0,0.00022799,2]
[310620887,1704586240137,-500.0,0.00022799,2]
[310620888,1704586240147,-317273.6601554,0.000228,2]
[310620889,1704586240157,-200.0,0.00022816,2]
[310620890,1704586240167,-3645.95363747,0.000229,2]
[310620891,1704586240178,-344.85919932,0.00022914,2]
[310620892,1704586240188,-160.99529057,0.00022915,2]
[310620893,1704586240198,-159.04,0.00022945,2]
[310620894,1704586240210,-155.38981305,0.0002299,2]
[310620895,1704586240220,-155.38981305,0.0002299,2]
[310620896,1704586240231,-500.0,0.00022998,2]
[310620897,1704586240241,-500.0,0.00022998,2]
[310620898,1704586240251,-500.0,0.00022998,2]
[310620899,1704586240261,-500.0,0.00022998,2]
[310620900,1704586240272,-500.0,0.00022998,2]
[310620901,1704586240281,-500.0,0.00022998,2]
[310620902,1704586240291,-500.0,0.00022998,2]
[310620903,1704586240301,-571.94,0.00022998,2]
[310620904,1704586240311,-188117.92067047,0.00022999,2]
[310620905,1704586240558,-2515.13428224,0.00022999,2]
[310620906,1704586240571,-1338.48991037,0.00022999,2]
[310620907,1704586240586,-13331.39526053,0.00022999,2]
[310620910,1704586240838,-500.0,0.00022797,2]
[310620913,1704586240847,-500.0,0.00022799,2]
[310620916,1704586240856,-285.22235789,0.00022799,2]
[310620920,1704586240870,-214.77764211,0.00022799,2]
[310620923,1704586240879,-736.48368061,0.00022999,2]
[310620924,1704586240893,-1586.253,0.00022999,2]
[310620925,1704586240906,-3307.94045,0.00022999,2]
[310620926,1704586240924,-6420.88416689,0.00022999,2]
[310620927,1704586240935,-785.44914221,0.00022999,2]
[310620928,1704586240947,-355.74370788,0.00022999,2]
[310620929,1704586240958,-635.96349285,0.00022999,2]
[310620930,1704586240970,-12500.0003,0.00022999,2]
[310620931,1704586240982,-256872.93390659,0.00022999,2]
[310620932,1704586240997,-942.7987189,0.00022999,2]
[310620933,1704586241009,-274.56474054,0.00022999,2]
[310620934,1704586241021,-60763.03009727,0.00022999,2]
[310620935,1704586241033,-1876.11327211,0.00022999,2]
[310620936,1704586241042,-10030.03708434,0.00022999,2]
[310620937,1704586241051,-500.0,0.00022999,2]
[310620938,1704586241060,-500.0,0.00022999,2]
[310620939,1704586241069,-500.0,0.00022999,2]
[310620940,1704586241078,-500.0,0.00022999,2]
[310620941,1704586241087,-609.18080985,0.00022999,2]
[310620942,1704586241096,-301.72650369,0.00022999,2]
[310620943,1704586241106,-561.69863712,0.00022999,2]
[310620944,1704586241115,-150.0,0.00022999,2]
[310620945,1704586241124,-150.0,0.00022999,2]
[310620946,1704586241133,-150.0,0.00022999,2]
[310620947,1704586241142,-168.64678802,0.00022999,2]
[310620948,1704586241151,-246.5777502,0.00022999,2]
[310620949,1704586241160,-500.0,0.00022999,2]
[310620950,1704586241169,-500.0,0.00022999,2]
[310620951,1704586241179,-500.0,0.00022999,2]
[310620952,1704586241188,-427.15358934,0.00022999,2]
[310620953,1704586241197,-500.0,0.00022999,2]
[310620954,1704586241205,-259.02,0.00022999,2]
[310620955,1704586241215,-500.0,0.00022999,2]
[310620956,1704586241224,-500.0,0.00022999,2]
[310620957,1704586241233,-500.0,0.00022999,2]
[310620958,1704586241241,-500.0,0.00022999,2]
[310620959,1704586241250,-500.0,0.00022999,2]
[310620960,1704586241259,-500.0,0.00022999,2]
[310620961,1704586241268,-500.0,0.00022999,2]
[310620962,1704586241277,-500.0,0.00022999,2]
[310620963,1704586241286,-500.0,0.00022999,2]
[310620964,1704586241295,-500.0,0.00022999,2]
[310620965,1704586241304,-36.56177648,0.00022999,2]
[310620966,1704586241336,-463.43822352,0.00022999,2]
[310620967,1704586241357,-131.02660177,0.00022999,2]
[310620968,1704586241370,-342.79972744,0.00022999,2]
[310620969,1704586241383,-26.17367079,0.00022999,2]
[310620970,1704586241392,-500.0,0.00022999,2]
[310620971,1704586241402,-500.0,0.00022999,2]
[310620972,1704586241411,-500.0,0.00022999,2]
[310620973,1704586241422,-363.74419769,0.00022999,2]
[310620974,1704586241432,-147.61705476,0.00022999,2]
[310620975,1704586241444,-352.38294524,0.00022999,2]
[310620976,1704586241454,-500.0,0.00022999,2]
[310620977,1704586241566,-462.96705476,0.00022999,2]
[310620978,1704586241747,-37.03294524,0.00022999,2]
[310620979,1704586241757,-500.0,0.00022999,2]
[310620980,1704586241768,-500.0,0.00022999,2]
[310620981,1704586241778,-500.0,0.00022999,2]
[310620982,1704586241788,-500.0,0.00022999,2]
[310620983,1704586241799,-500.0,0.00022999,2]
[310620984,1704586241809,-500.0,0.00022999,2]
[310620985,1704586241819,-500.0,0.00022999,2]
[310620986,1704586241830,-500.0,0.00022999,2]
[310620987,1704586241841,-500.0,0.00022999,2]
[310620988,1704586241851,-500.0,0.00022999,2]
[310620989,1704586241860,-500.0,0.00022999,2]
[310620990,1704586241870,-500.0,0.00022999,2]
[310620991,1704586241880,-500.0,0.00022999,2]
[310620992,1704586241893,-500.0,0.00022999,2]
[310620993,1704586241912,-383.18087474,0.00022999,2]
[310620994,1704586241923,-173.12741397,0.00022999,2]
[310620995,1704586241934,-398.56,0.00022999,2]
[310620996,1704586241948,-500.0,0.00022999,2]
[310620997,1704586241958,-500.0,0.00022999,2]
[310620998,1704586241968,-500.0,0.00022999,2]
[310620999,1704586241978,-318.74399984,0.00022999,2]
[310621000,1704586241989,-500.0,0.00022999,2]
[310621001,1704586242000,-525.98,0.00022999,2]
[310621002,1704586242010,-500.0,0.00022999,2]
[310621003,1704586242021,-500.0,0.00022999,2]
[310621004,1704586242031,-394.83,0.00022999,2]
[310621005,1704586242041,-500.0,0.00022999,2]
[310621006,1704586242051,-500.0,0.00022999,2]
[310621007,1704586242060,-500.0,0.00022999,2]
[310621008,1704586242071,-500.0,0.00022999,2]
[310621009,1704586242082,-500.0,0.00022999,2]
[310621010,1704586242092,-500.0,0.00022999,2]
[310621011,1704586242101,-500.0,0.00022999,2]
[310621012,1704586242112,-500.0,0.00022999,2]
[310621013,1704586242122,-500.0,0.00022999,2]
[310621014,1704586242132,-500.0,0.00022999,2]
[310621015,1704586242141,-532.1768893,0.00022999,2]
[310621016,1704586242152,-500.0,0.00022999,2]
[310621017,1704586242162,-489.53,0.00022999,2]
[310621018,1704586242172,-500.0,0.00022999,2]
[310621019,1704586242182,-500.0,0.00022999,2]
[310621020,1704586242191,-500.0,0.00022999,2]
[310621021,1704586242201,-500.0,0.00022999,2]
[310621022,1704586242211,-500.0,0.00022999,2]
[310621023,1704586242220,-500.0,0.00022999,2]
[310621024,1704586242230,-500.0,0.00022999,2]
[310621025,1704586242239,-500.0,0.00022999,2]
[310621026,1704586242250,-464.92,0.00022999,2]
[310621027,1704586242262,-500.0,0.00022999,2]
[310621028,1704586242272,-500.03,0.00022999,2]
[310621029,1704586242281,-288.62,0.00022999,2]
[310621030,1704586242290,-500.0,0.00022999,2]
[310621031,1704586242299,-500.0,0.00022999,2]
[310621032,1704586242308,-237.65,0.00022999,2]
[310621033,1704586242317,-500.0,0.00022999,2]
[310621034,1704586242327,-500.0,0.00022999,2]
[310621035,1704586242338,-500.0,0.00022999,2]
[310621036,1704586242347,-500.0,0.00022999,2]
[310621037,1704586242356,-384.24932741,0.00022999,2]
[310621038,1704586242366,-572.75823532,0.00022999,2]
[310621039,1704586242376,-500.0,0.00022999,2]
[310621040,1704586242385,-500.0,0.00022999,2]
[310621041,1704586242394,-500.0,0.00022999,2]
[310621042,1704586242403,-500.0,0.00022999,2]
[310621043,1704586242413,-500.0,0.00022999,2]
[310621044,1704586242425,-142.97668708,0.00022999,2]
[310621045,1704586242443,-357.02331292,0.00022999,2]
[310621046,1704586242454,-150.74597569,0.00022999,2]
[310621047,1704586242467,-349.25402431,0.00022999,2]
[310621048,1704586242478,-63.75087145,0.00022999,2]
[310621049,1704586242490,-320.03094195,0.00022999,2]
[310621050,1704586242503,-116.2181866,0.00022999,2]
[310621051,1704586242513,-195.92501437,0.00022999,2]
[310621052,1704586242527,-304.07498563,0.00022999,2]
[310621053,1704586242540,-97.51619037,0.00022999,2]
[310621054,1704586242561,-333.50118031,0.00022999,2]
[310621055,1704586242574,-68.98262932,0.00022999,2]
[310621056,1704586242586,-500.0,0.00022999,2]
[310621057,1704586242597,-500.0,0.00022999,2]
[310621058,1704586242610,-500.0,0.00022999,2]
[310621059,1704586242620,-500.0,0.00022999,2]
[310621060,1704586242630,-500.0,0.00022999,2]
[310621061,1704586242642,-368.17045746,0.00022999,2]
[310621062,1704586242653,-500.0,0.00022999,2]
[310621063,1704586242664,-500.0,0.00022999,2]
[310621064,1704586242675,-500.0,0.00022999,2]
[310621065,1704586242685,-500.0,0.00022999,2]
[310621066,1704586242695,-500.0,0.00022999,2]
[310621067,1704586242705,-500.0,0.00022999,2]
[310621068,1704586242715,-500.0,0.00022999,2]
[310621069,1704586242725,-500.0,0.00022999,2]
[310621070,1704586242736,-500.0,0.00022999,2]
[310621071,1704586242746,-500.0,0.00022999,2]
[310621072,1704586242755,-500.0,0.00022999,2]
[310621073,1704586242765,-500.0,0.00022999,2]
[310621074,1704586242775,-500.0,0.00022999,2]
[310621075,1704586242785,-525.58907771,0.00022999,2]
[310621076,1704586242795,-393.42556079,0.00022999,2]
[310621077,1704586242809,-106.57443921,0.00022999,2]
[310621078,1704586242822,-500.0,0.00022999,2]
[310621079,1704586242832,-500.0,0.00022999,2]
[310621080,1704586242842,-500.0,0.00022999,2]
[310621081,1704586242851,-500.0,0.00022999,2]
[310621082,1704586242862,-500.0,0.00022999,2]
[310621083,1704586242872,-500.0,0.00022999,2]
[310621084,1704586242883,-420.21358651,0.00022999,2]
[310621085,1704586242896,-79.78641349,0.00022999,2]
[310621086,1704586242906,-324.68513438,0.00022999,2]
[310621087,1704586242920,-175.31486562,0.00022999,2]
[310621088,1704586242931,-137.21123436,0.00022999,2]
[310621089,1704586242945,-320.7376266,0.00022999,2]
[310621090,1704586242957,-42.05113904,0.00022999,2]
[310621091,1704586242966,-500.0,0.00022999,2]
[310621092,1704586242976,-500.0,0.00022999,2]
[310621093,1704586242985,-266.34,0.00022999,2]
[310621094,1704586242995,-159.57558736,0.00022999,2]
[310621095,1704586243011,-340.42441264,0.00022999,2]
[310621096,1704586243020,-500.0,0.00022999,2]
[310621097,1704586243030,-589.94195542,0.00022999,2]
[310621098,1704586243040,-500.0,0.00022999,2]
[310621100,1704586243049,-524.72,0.00022999,2]
[310621101,1704586243058,-524.72,0.00022999,2]
[310621103,1704586243067,-500.0,0.00022999,2]
[310621105,1704586243076,-477.91863193,0.00022999,2]
[310621108,1704586243088,-46.80136807,0.00022999,2]
[310621111,1704586243097,-452.27483558,0.00022999,2]
[310621113,1704586243107,-41.979119,0.00022999,2]
[310621127,1704586243368,-150.0,0.00022755,2]
[310621128,1704586243377,-150.0,0.00022778,2]
[310621129,1704586243387,-150.0,0.00022786,2]
[310621130,1704586243396,-150.0,0.00022829,2]
[310621131,1704586243406,-150.0,0.00022833,2]
[310621132,1704586243418,-150.0,0.00022838,2]
[310621133,1704586243428,-150.0,0.00022842,2]
[310621134,1704586243440,-150.0,0.00022854,2]
[310621135,1704586243451,-150.0,0.00022871,2]
[310621136,1704586243464,-482.740881,0.00022999,2]
[310621137,1704586243475,-524.72,0.00022999,2]
[310621138,1704586243485,-524.72,0.00022999,2]
[310621139,1704586243495,-524.72,0.00022999,2]
[310621140,1704586243506,-524.72,0.00022999,2]
[310621141,1704586243516,-524.72,0.00022999,2]
[310621142,1704586243525,-524.72,0.00022999,2]
[310621143,1704586243535,-500.0,0.00022999,2]
[310621144,1704586243546,-500.0,0.00022999,2]
[310621145,1704586243556,-524.72,0.00022999,2]
[310621146,1704586243566,-500.0,0.00022999,2]
[310621147,1704586243576,-524.72,0.00022999,2]
[310621148,1704586243587,-524.72,0.00022999,2]
[310621149,1704586243597,-509.9816867,0.00022999,2]
[310621150,1704586243607,-500.0,0.00022999,2]
[310621151,1704586243618,-524.72,0.00022999,2]
[310621152,1704586243628,-500.0,0.00022999,2]
[310621153,1704586243638,-524.72,0.00022999,2]
[310621154,1704586243648,-500.0,0.00022999,2]
[310621155,1704586243658,-524.72,0.00022999,2]
[310621156,1704586243668,-500.0,0.00022999,2]
[310621157,1704586243679,-500.0,0.00022999,2]
[310621158,1704586243689,-524.72,0.00022999,2]
[310621159,1704586243699,-500.0,0.00022999,2]
[310621160,1704586243710,-500.0,0.00022999,2]
[310621161,1704586243719,-524.72,0.00022999,2]
[310621162,1704586243730,-549.76,0.00022999,2]
[310621163,1704586243740,-500.0,0.00022999,2]
[310621164,1704586243751,-524.72,0.00022999,2]
[310621165,1704586243762,-619.42031639,0.00022999,2]
[310621166,1704586243772,-524.72,0.00022999,2]
[310621167,1704586243782,-524.89,0.00022999,2]
[310621168,1704586243793,-500.0,0.00022999,2]
[310621169,1704586243803,-500.0,0.00022999,2]
[310621170,1704586243816,-500.0,0.00022999,2]
[310621171,1704586243827,-231.43973764,0.00022999,2]
[310621172,1704586243839,-500.0,0.00022999,2]
[310621173,1704586243850,-500.0,0.00022999,2]
[310621174,1704586243861,-197.31579947,0.00022999,2]
[310621175,1704586243877,-302.68420053,0.00022999,2]
[310621176,1704586243888,-432.91579947,0.00022999,2]
[310621177,1704586243929,-150.0,0.0002276,2]
[310621178,1704586243940,-150.0,0.00022927,2]
[310621179,1704586243953,-150.0,0.00022934,2]
[310621180,1704586243963,-67.08420053,0.00022999,2]
[310621181,1704586243974,-500.0,0.00022999,2]
[310621182,1704586243984,-500.0,0.00022999,2]
[310621183,1704586243995,-500.0,0.00022999,2]
[310621184,1704586244005,-500.0,0.00022999,2]
[310621185,1704586244015,-500.0,0.00022999,2]
[310621186,1704586244025,-500.0,0.00022999,2]
[310621187,1704586244037,-500.0,0.00022999,2]
[310621188,1704586244047,-500.0,0.00022999,2]
[310621189,1704586244058,-500.0,0.00022999,2]
[310621190,1704586244068,-500.0,0.00022999,2]
[310621191,1704586244079,-500.0,0.00022999,2]
[310621192,1704586244091,-514.82372814,0.00022999,2]
[310621193,1704586244102,-407.82,0.00022999,2]
[310621194,1704586244113,-500.0,0.00022999,2]
[310621195,1704586244124,-500.0,0.00022999,2]
[310621196,1704586244134,-500.0,0.00022999,2]
[310621197,1704586244144,-500.0,0.00022999,2]
[310621198,1704586244154,-500.0,0.00022999,2]
[310621199,1704586244164,-500.0,0.00022999,2]
[310621200,1704586244174,-500.0,0.00022999,2]
[310621201,1704586244184,-390.38,0.00022999,2]
[310621202,1704586244194,-500.0,0.00022999,2]
[310621203,1704586244205,-500.0,0.00022999,2]
[310621204,1704586244216,-394.41673471,0.00022999,2]
[310621205,1704586244226,-500.0,0.00022999,2]
[310621206,1704586244236,-500.0,0.00022999,2]
[310621207,1704586244246,-500.0,0.00022999,2]
[310621208,1704586244256,-35.07024517,0.00022999,2]
[310621209,1704586244273,-464.92975483,0.00022999,2]
[310621210,1704586244283,-500.0,0.00022999,2]
[310621211,1704586244294,-47.4766451,0.00022999,2]
[310621212,1704586244309,-399.88421386,0.00022999,2]
[310621213,1704586244342,-52.63914104,0.00022999,2]
[310621214,1704586244354,-237.16339439,0.00022999,2]
[310621215,1704586244366,-500.0,0.00022999,2]
[310621216,1704586244377,-278.08364352,0.00022999,2]
[310621217,1704586244392,-221.91635648,0.00022999,2]
[310621218,1704586244405,-35.68304292,0.00022999,2]
[310621219,1704586244421,-464.31695708,0.00022999,2]
[310621220,1704586244433,-156.19597427,0.00022999,2]
[310621221,1704586244445,-98.39361065,0.00022999,2]
[310621222,1704586244503,-150.0,0.00022757,2]
[310621223,1704586244516,-150.0,0.00022816,2]
[310621224,1704586244528,-87.5860001,0.00022834,2]
[310621225,1704586244564,-150.0,0.00022751,2]
[310621226,1704586244578,-150.0,0.00022816,2]
[310621227,1704586244589,-62.4139999,0.00022834,2]
[310621228,1704586244601,-150.0,0.00022838,2]
[310621229,1704586244614,-150.0,0.00022908,2]
[310621230,1704586244628,-150.0,0.00022967,2]
[310621231,1704586244643,-401.60638935,0.00022999,2]
[310621232,1704586244655,-500.0,0.00022999,2]
[310621233,1704586244666,-458.17961075,0.00022999,2]
[310621234,1704586244680,-47.79658785,0.00022999,2]
[310621235,1704586244691,-500.0,0.00022999,2]
[310621236,1704586244703,-372.48786885,0.00022999,2]
[310621237,1704586244714,-500.0,0.00022999,2]
[310621238,1704586244726,-500.0,0.00022999,2]
[310621239,1704586244737,-15.46649272,0.00022999,2]
[310621240,1704586244750,-466.747764,0.00022999,2]
[310621241,1704586244789,-150.0,0.00022725,2]
[310621242,1704586244801,-107.26932044,0.00022936,2]
[310621243,1704586244818,-42.73067956,0.00022936,2]
[310621244,1704586244830,-17.78574328,0.00022999,2]
[310621245,1704586244846,-500.0,0.00022999,2]
[310621246,1704586244858,-135.54343187,0.00022999,2]
[310621247,1704586244891,-293.33957425,0.00022999,2]
[310621284,1704586246409,-500.0,0.00022797,2]
[310621288,1704586246421,-177.98716352,0.00022799,2]
[310621292,1704586246433,-322.01283648,0.00022799,2]
[310621295,1704586246444,-567.73,0.00022799,2]
[310621298,1704586246454,-150.0,0.00022955,2]
[310621302,1704586246466,-150.0,0.00022996,2]
[310621304,1704586246477,-802.27518014,0.00022999,2]
[310621306,1704586246490,-1538.64470573,0.00022999,2]
[310621308,1704586246501,-71.11699388,0.00022999,2]
[310621309,1704586246512,-500.0,0.00022999,2]
[310621311,1704586246533,-500.0,0.00022999,2]
[310621313,1704586246545,-500.0,0.00022999,2]
[310621315,1704586246557,-335.24,0.00022999,2]
[310621318,1704586246570,-500.0,0.00022999,2]
[310621320,1704586246583,-500.0,0.00022999,2]
[310621323,1704586246599,-400.07283076,0.00022999,2]
[310621325,1704586246612,-500.0,0.00022999,2]
[310621327,1704586246622,-500.0,0.00022999,2]
[310621329,1704586246633,-500.0,0.00022999,2]
[310621331,1704586246644,-253.68896963,0.00022999,2]
[310621334,1704586246660,-350.77103037,0.00022999,2]
[310621336,1704586246673,-604.46,0.00022999,2]
[310621339,1704586246686,-604.46,0.00022999,2]
[310621341,1704586246699,-604.46,0.00022999,2]
[310621343,1704586246709,-604.46,0.00022999,2]
[310621346,1704586246722,-604.46,0.00022999,2]
[310621348,1704586246734,-500.0,0.00022999,2]
[310621350,1704586246747,-500.0,0.00022999,2]
[310621353,1704586246760,-604.46,0.00022999,2]
[310621355,1704586246772,-500.0,0.00022999,2]
[310621357,1704586246782,-604.46,0.00022999,2]
[310621359,1704586246794,-500.0,0.00022999,2]
[310621361,1704586246805,-649.1451841,0.00022999,2]
[310621364,1704586246817,-604.46,0.00022999,2]
[310621366,1704586246828,-500.0,0.00022999,2]
[310621368,1704586246840,-604.46,0.00022999,2]
[310621370,1704586246852,-500.0,0.00022999,2]
[310621375,1704586246864,-604.46,0.00022999,2]
[310621377,1704586246876,-500.0,0.00022999,2]
[310621379,1704586246887,-604.46,0.00022999,2]
[310621380,1704586246901,-500.0,0.00022999,2]
[310621381,1704586246913,-604.46,0.00022999,2]
[310621382,1704586246925,-500.0,0.00022999,2]
[310621383,1704586246937,-604.46,0.00022999,2]
[310621384,1704586246948,-604.46,0.00022999,2]
[310621385,1704586246960,-500.0,0.00022999,2]
[310621386,1704586246970,-500.0,0.00022999,2]
[310621387,1704586246979,-78.05051597,0.00022999,2]
[310621388,1704586246999,-526.40948403,0.00022999,2]
[310621389,1704586247010,-167.36580193,0.00022999,2]
[310621390,1704586247021,-604.46,0.00022999,2]
[310621391,1704586247031,-604.46,0.00022999,2]
[310621392,1704586247042,-604.46,0.00022999,2]
[310621393,1704586247054,-604.46,0.00022999,2]
[310621394,1704586247066,-604.47869348,0.00022999,2]
[310621395,1704586247079,-500.0,0.00022999,2]
[310621396,1704586247093,-500.0,0.00022999,2]
[310621397,1704586247104,-500.0,0.00022999,2]
[310621398,1704586247116,-500.0,0.00022999,2]
[310621399,1704586247126,-223.45754336,0.00022999,2]
[310621400,1704586247137,-500.0,0.00022999,2]
[310621401,1704586247148,-500.0,0.00022999,2]
[310621402,1704586247158,-500.0,0.00022999,2]
[310621403,1704586247168,-25.4484772,0.00022999,2]
[310621404,1704586247187,-518.7932368,0.00022999,2]
[310621405,1704586260305,328.0,0.00022043,2]
[310621406,1704586281859,151.0,0.00026925,120]
[310621407,1704586293757,201.0,0.00022114,2]
[310621408,1704586313908,155.0,0.00022996,7]
[310621409,1704586335492,3119.1205006,0.00021846,2]
[310621410,1704586355746,1217.36220918,0.00021846,2]
[310621411,1704586361699,844.80069332,0.00021846,2]
[310621412,1704586377699,384.65914648,0.00021846,2]
[310621413,1704586490405,157.11,0.00021851,2]
[310621414,1704586494735,151.0,0.00026839,120]
[310621415,1704586533859,201.0,0.00022114,2]
[310621416,1704586554875,150.87,0.00019933,2]
[310621417,1704586611653,155.32,0.00022011,2]
[310621418,1704586719009,737.6,0.00021847,2]
[310621421,1704586824980,151.0,0.000269,120]
[310621422,1704586911785,168.62,0.0002187,2]
[310621425,1704586953847,202.0,0.00021836,2]
[310621426,1704586977648,154.0,0.00019951,2]
[310621427,1704586981880,160.31,0.00022085,2]
[310621428,1704587013447,151.06375353,0.00022,2]
[310621429,1704587049106,156.64,0.00021866,2]
[310621430,1704587054656,151.0,0.00026979,120]
[310621431,1704587058899,155.32,0.00022031,2]
[310621434,1704587123347,409.92,0.00021868,2]
[310621440,1704587313813,202.0,0.00022495,2]
[310621443,1704587348971,164.3,0.00021862,2]
[310621446,1704587368551,151.0,0.0002706,120]
[310621450,1704587380291,606.24573586,0.00025,7]
[310621452,1704587401286,154.0,0.00019947,2]
[310621473,1704587431537,-250.19404164,0.00022574,2]
[310621474,1704587431591,-38.09932217,0.00022574,2]
[310621475,1704587431603,-399.8670159,0.00022575,2]
[310621476,1704587431617,-572.99471805,0.00022575,2]
[310621477,1704587431626,-168.62,0.00022599,2]
[310621478,1704587431635,-156.45402908,0.00022625,2]
[310621479,1704587431645,-729.31,0.00022654,2]
[310621480,1704587431654,-150.0,0.00022697,2]
[310621481,1704587431663,-194.6973,0.00022698,2]
[310621482,1704587431673,-6317.0602,0.00022698,2]
[310621483,1704587431682,-150.0,0.0002272,2]
[310621484,1704587431691,-150.0,0.00022723,2]
[310621485,1704587431700,-150.0,0.00022726,2]
[310621486,1704587431709,-3412.72,0.00022727,2]
[310621487,1704587431718,-499.99,0.00022727,2]
[310621488,1704587431727,-4181.28,0.0002273,2]
[310621489,1704587431736,-150.0,0.00022736,2]
[310621490,1704587431746,-150.0,0.00022737,2]
[310621491,1704587431755,-150.0,0.00022746,2]
[310621492,1704587431764,-300.0,0.00022749,2]
[310621493,1704587431773,-150.0,0.0002275,2]
[310621494,1704587431782,-150.0,0.00022759,2]
[310621495,1704587431791,-150.0,0.00022759,2]
[310621496,1704587431801,-150.0,0.0002276,2]
[310621497,1704587431810,-150.0,0.00022763,2]
[310621498,1704587431819,-150.0,0.00022765,2]
[310621499,1704587431829,-150.0,0.00022765,2]
[310621500,1704587431838,-44.77519762,0.00022769,2]
[310621505,1704587432334,-1752.22480238,0.00022769,2]
[310621506,1704587432346,-150.0,0.00022773,2]
[310621507,1704587432355,-150.0,0.00022776,2]
[310621508,1704587432365,-150.0,0.00022778,2]
[310621509,1704587432379,-150.0,0.0002278,2]
[310621510,1704587432388,-150.0,0.00022782,2]
[310621511,1704587432397,-150.0,0.00022785,2]
[310621512,1704587432406,-150.0,0.00022786,2]
[310621513,1704587432417,-150.0,0.00022787,2]
[310621514,1704587432429,-150.0,0.00022788,2]
[310621515,1704587432439,-150.0,0.0002279,2]
[310621516,1704587432448,-150.0,0.00022795,2]
[310621517,1704587432457,-500.0,0.00022798,2]
[310621518,1704587432466,-425.72537691,0.00022798,2]
[310621519,1704587432475,-150.0,0.00022798,2]
[310621520,1704587432484,-500.0,0.00022799,2]
[310621521,1704587432494,-500.0,0.00022799,2]
[310621522,1704587432503,-150.0,0.00022802,2]